Cogmind - Beta 10.2 *** ADVENTURER MODE // 2021.12.18 @ 04:05:03 Player: aes256thetic Result: Self-destructed Performance ------------- Evolutions (1) 500 Regions Visited (3) 600 Robots Destroyed (16) 80 Value Destroyed (389) 389 Prototype IDs (0) 0 Alien Tech Used (0) 0 Bonus (0) 0 TOTAL SCORE: 1569 Bonus ------- None Cogmind --------- Core Integrity 349/400 Matter 225/300 Energy 68/100 System Corruption 0% Temperature Cool (0) Movement Walking (330) Ox7 Location -9/Materials Parts ------- > --- POWER (1) -------- (None) > --- PROPULSION (2) --- Aluminum Leg > --- UTILITY (3) ------ Heat Sink High-capacity Storage Unit High-capacity Storage Unit > --- WEAPON (3) ------- Spread Laser Autogun > --- INVENTORY (20) --- Compact Wheel Small Storage Unit Plasma Cutter Peak State ------------ > --- POWER ------------ (None) > --- PROPULSION ------- Aluminum Leg > --- UTILITY ---------- Heat Sink High-capacity Storage Unit > --- WEAPON ----------- Assault Rifle Autogun Rocket Launcher > --- INVENTORY -------- Compact Wheel Small Storage Unit High-capacity Storage Unit Mini Grenade Launcher [Rating: 8] Favorites ----------- Power Ion Engine Engine Ion Engine Propulsion Aluminum Leg Leg Aluminum Leg Wheel Compact Wheel Utility High-capacity Storage Unit Device Heat Sink Storage High-capacity Storage Unit Weapon Assault Rifle Energy Gun Small Laser Ballistic Gun Assault Rifle Launcher Rocket Launcher Build | -11 -10 -10 -9 ------- Run | Scr Mat Min Mat Slots Evolved 2 | . . . 2 Power . | . . . . Propulsion . | . . . . Utility 1 | . . . 1 Weapon 1 | . . . 1 Parts Attached 21 | 6 3 7 5 Power 2 | 1 . 1 . Engine 2 | 1 . 1 . Core . | . . . . Reactor . | . . . . Propulsion 4 | 2 . 2 . Treads . | . . . . Leg 2 | . . 2 . Wheel 2 | 2 . . . Hover . | . . . . Flight . | . . . . Utility 4 | 1 1 . 2 Device 1 | . . . 1 Storage 3 | 1 1 . 1 Processor . | . . . . Hackware . | . . . . Protection . | . . . . Artifact . | . . . . Weapon 11 | 2 2 4 3 Energy Gun 3 | . 1 1 1 Energy Cannon . | . . . . Ballistic Gun 4 | 2 . 1 1 Ballistic Cannon . | . . . . Launcher 4 | . 1 2 1 Special Weapon . | . . . . Impact Weapon . | . . . . Slashing Weapon . | . . . . Piercing Weapon . | . . . . Special Melee Weapon . | . . . . Unidentified Prototypes . | . . . . Parts Lost 10 | . . 7 3 Power 2 | . . 2 . Propulsion 2 | . . 2 . Utility . | . . . . Weapon 6 | . . 3 3 Highest Loss Streak 4 | . . 4 2 Average Slot Usage (%) 70 | . 85 77 59 Engine 6 | . 14 11 . Leg 14 | . . 21 11 Wheel 5 | . 28 4 . Device 3 | . . . 8 Storage 12 | . 14 14 11 Energy Gun 4 | . . 10 . Ballistic Gun 17 | . 25 12 20 Launcher 4 | . 2 1 8 Naked Turns . | . . . . Heaviest Build 43 | 11 43 43 42 Greatest Support 26 | 26 26 26 10 Greatest Overweight (x) 4 | . 1 4 4 Average Overweight (x) 1 | . . 1 3 Largest Inventory Capacity 20 | 6 14 12 20 Average Capacity 11 | 5 10 12 12 Most Carried 8 | 4 8 8 6 Average Carried 4 | 2 5 4 4 Final Capacity 20 | 6 12 12 20 Final Carried 8 | 4 8 4 3 Class Distribution -------------------- 100% | Mutant Dominant Class ---------------- Mutant | -10/Materials Mutant | -10/Mines Mutant | -9/Materials Resources | -11 -10 -10 -9 ----------- Run | Scr Mat Min Mat Matter Collected 533 | 199 36 191 107 Remotely . | . . . . Salvage Created 390 | . 69 84 237 Parts 26 | . 6 4 16 Haulers Intercepted 1 | . 1 . . Recyclers Shooed . | . . . . Parts Field Recycled . | . . . . Retrieved Matter . | . . . . Parts Self-Destructed . | . . . . Prevented . | . . . . Kills | -11 -10 -10 -9 ------- Run | Scr Mat Min Mat Combat Hostiles Destroyed 16 | . 3 5 8 Guns 9 | . 1 2 6 AOE 7 | . 2 3 2 Classes Destroyed 9 | . 2 3 4 Builder 1 | . . . 1 Hauler 1 | . 1 . . Recycler 1 | . . 1 . Swarmer 7 | . 3 . 4 Grunt 2 | . . . 2 Duelist 1 | . . . 1 Sentry 1 | . . . 1 Demolisher 2 | . . 2 . Assembled 3 | . . 3 . Best Kill Streak 4 | . 4 3 4 Combat Bots Only 3 | . 3 3 3 Max Kills in Single Turn 3 | . 3 2 2 Gunslinging . | . . . . Exploded 2 | . 2 2 1 Melee . | . . . . Uniques/NPCs Destroyed . | . . . . Combat | -11 -10 -10 -9 -------- Run | Scr Mat Min Mat Damage Taken 1126 | . 37 835 254 Core 292 | . 23 218 51 Absorbed by Shields . | . . . . Core Remaining (%) 51 | 100 . 3 . Volleys Fired 33 | . 2 14 17 Largest 3 | . 2 2 3 Hottest 76 | . 50 60 76 Shots Fired 62 | . 4 22 36 Gun 53 | . 2 18 33 Cannon . | . . . . Launcher 9 | . 2 4 3 Special . | . . . . Kinetic 46 | . 2 11 33 Thermal 7 | . . 7 . Explosive 9 | . 2 4 3 Electromagnetic . | . . . . Robot Hit Streak 22 | . 3 9 22 Robot Miss Streak 1 | . . 1 1 Penetration Max . | . . . . Secondary Targets . | . . . . Shots Hit Robots 50 | . 3 17 30 Core Hits 34 | . 4 14 16 Critical Hits 2 | . . 2 . Critical Kills 1 | . . 1 . Critical Parts Destroyed 1 | . . 1 . Melee Attacks . | . . . . Impact . | . . . . Slashing . | . . . . Piercing . | . . . . Sneak Attacks . | . . . . Combat Hostiles . | . . . . Follow-up Attacks . | . . . . Damage Inflicted 1363 | . 108 579 676 Guns 576 | . 24 155 397 Cannons . | . . . . Explosions 787 | . 84 424 279 Melee . | . . . . Ramming . | . . . . Kinetic 512 | . 24 91 397 Thermal 171 | . . 64 107 Explosive 680 | . 84 424 172 Electromagnetic . | . . . . Impact . | . . . . Slashing . | . . . . Piercing . | . . . . Highest Corruption . | . . . . Average Corruption . | . . . . Corruption Purged . | . . . . Overload Shots . | . . . . Overflow Damage 89 | . . 17 72 Projectiles . | . . . . Explosions 89 | . . 17 72 Melee . | . . . . Knockbacks . | . . . . Impact . | . . . . Kinetic . | . . . . Secondary . | . . . . Self-Inflicted Damage 223 | . 18 107 98 Shots 7 | . 1 4 2 Rammed 1 | . . . 1 Targets Rammed 1 | . . . 1 Kicked . | . . . . Crushed . | . . . . Highest Temperature 2 | . . . 2 Average Temperature 2 | . . . 2 Received Heat Transfer 51 | . . . 51 Siege Activations . | . . . . Robots Corrupted . | . . . . Combat Hostiles . | . . . . Parts Fried . | . . . . Impact Corruptions . | . . . . Robots Melted . | . . . . Combat Hostiles . | . . . . Parts Melted . | . . . . Heat Transferred 200 | . . 150 50 Parts Sabotaged . | . . . . Parts Stolen . | . . . . Parts Stripped . | . . . . Power Chain Reactions . | . . . . Missiles Intercepted . | . . . . Alert | -11 -10 -10 -9 ------- Run | Scr Mat Min Mat Peak Influence 268 | . 128 46 268 Initial 41 | . . 41 . Average 40 | . 29 10 77 Maximum Alert Level 1 | . . . 1 Low Security (%) 97 | 100 100 100 92 Level 1 2 | . . . 7 Level 2 . | . . . . Level 3 . | . . . . Level 4 . | . . . . Level 5 . | . . . . High Security . | . . . . Max Security . | . . . . Squads Dispatched 1 | . . . 1 Investigation . | . . . . Extermination . | . . . . Reinforcement 1 | . . . 1 Assault . | . . . . Garrison . | . . . . Intercept . | . . . . Construction Impeded . | . . . . Haulers Reinforced . | . . . . Stealth | -11 -10 -10 -9 --------- Run | Scr Mat Min Mat Distress Signals 1 | . . 1 . Communications Jammed . | . . . . Distress Signals . | . . . . Times Spotted 24 | . 3 8 13 Peak Tracking Total 7 | . 3 7 4 Tactical Retreats 4 | . . 3 1 Traps | -11 -10 -10 -9 ------- Run | Scr Mat Min Mat Traps Triggered . | . . . . Indirectly . | . . . . Trap Hack Attempts . | . . . . Triggered . | . . . . Disarmed . | . . . . Reprogrammed . | . . . . Reused . | . . . . Traps Extracted . | . . . . Installed . | . . . . Triggered . | . . . . Machines | -11 -10 -10 -9 ---------- Run | Scr Mat Min Mat Machines Disabled 6 | . 4 . 2 Max in Single Turn 2 | . 2 . 1 Machines Sabotaged . | . . . . Garrisons Compromised . | . . . . Overloaded Fab Kills . | . . . . Fab Network Shutdowns . | . . . . Hacking | -11 -10 -10 -9 --------- Run | Scr Mat Min Mat Machines Accessed 4 | . 2 . 2 Terminals 3 | . 2 . 1 Fabricators . | . . . . Repair Stations . | . . . . Recycling Units . | . . . . Scanalyzers 1 | . . . 1 Garrison Access . | . . . . Total Hacks 10 | . 6 . 4 Successful 6 | . 4 . 2 Failed 4 | . 2 . 2 Catastrophic . | . . . . Database Lockouts . | . . . . Manual . | . . . . Terminals 8 | . 6 . 2 Fabricators . | . . . . Repair Stations . | . . . . Recycling Units . | . . . . Scanalyzers 2 | . . . 2 Garrison Access . | . . . . Terminal Hacks 4 | . 4 . . Registered Components 1 | . 1 . . Registered Prototypes 1 | . 1 . . Zone Layout 2 | . 2 . . Fabricator Hacks . | . . . . Repair Station Hacks . | . . . . Recycling Unit Hacks . | . . . . Scanalyzer 2 | . . . 2 Insert Component 1 | . . . 1 Analyze 1 | . . . 1 Garrison Access Hacks . | . . . . Unauthorized Hacks . | . . . . Terminals . | . . . . Fabricators . | . . . . Repair Stations . | . . . . Recycling Units . | . . . . Scanalyzers . | . . . . Garrison Access . | . . . . Data Cores Recovered . | . . . . Used . | . . . . Hacking Detections 2 | . 1 . 1 Full Trace Events 1 | . 1 . . Feedback Events . | . . . . Feedback Blocked . | . . . . Robot Schematics Acquired . | . . . . Robots Built . | . . . . Matter . | . . . . Time . | . . . . Total Robot Build Rating . | . . . . Part Schematics Acquired 1 | . . . 1 Parts Built . | . . . . Matter . | . . . . Time . | . . . . Total Part Build Rating . | . . . . Parts Repaired . | . . . . Time . | . . . . Parts Recycled . | . . . . Recycled Matter . | . . . . Retrieved Matter . | . . . . Retrieved Components . | . . . . Parts Scanalyzed 1 | . . . 1 Part Schematics Acquired 1 | . . . 1 Parts Damaged . | . . . . Bothacking | -11 -10 -10 -9 ------------ Run | Scr Mat Min Mat Used RIF Installer . | . . . . Robots Hacked . | . . . . Non-combat . | . . . . Combat . | . . . . Robot Hacks Applied . | . . . . Relay Couplers Released . | . . . . Robots Rewired . | . . . . Allies Hacked . | . . . . Hacks Repelled . | . . . . Allies | -11 -10 -10 -9 -------- Run | Scr Mat Min Mat Total Allies . | . . . . Largest Group . | . . . . Highest-Rated Group . | . . . . Highest-Rated Ally . | . . . . Total Orders . | . . . . Ally Attacks . | . . . . Total Damage . | . . . . Kills . | . . . . Allies Corrupted . | . . . . Allies Melted . | . . . . Intel | -11 -10 -10 -9 ------- Run | Scr Mat Min Mat Robot Analysis Total . | . . . . Derelict Logs Recovered . | . . . . Drone Launches . | . . . . Drone Recoveries . | . . . . Exploration | -11 -10 -10 -9 ------------- Run | Scr Mat Min Mat Turns Passed 1005 | 55 118 407 425 Spaces Moved 556 | 47 104 253 152 Core 1 | 1 . . . Treads . | . . . . Legs 345 | . . 193 152 Wheels 210 | 46 104 60 . Hover . | . . . . Flight . | . . . . Fastest Speed 50 | 50 90 100 210 Average Speed 154 | 90 96 143 231 Slowest Speed 240 | 100 100 240 240 Overloaded Moves . | . . . . Propulsion Burnouts . | . . . . Robots Hopped . | . . . . Cave-ins Triggered . | . . . . Exploration Rate (%) 27 | 4 27 61 19 Regions Visited 3 Branch Regions 1 Pre-discovered Areas . | . . . . Known Exits Taken . | . . . . Unknown Exits Taken 3 | 1 1 1 . Scrap Searched . | . . . . Spaces Dug . | . . . . Terrain Destroyed 124 | . 24 42 58 Melee . | . . . . Projectile . | . . . . AOE 124 | . 24 42 58 Terrain Rammed . | . . . . Walls Destroyed . | . . . . Machines Disabled . | . . . . Actions | -11 -10 -10 -9 --------- Run | Scr Mat Min Mat Total 641 | 56 117 276 192 Wait 20 | . 5 1 14 Move 553 | 46 103 252 152 Hop . | . . . . Pick Up 11 | 4 2 2 3 Fast Attach 9 | 6 2 . 1 Attach 10 | . . 6 4 Detach 2 | . 2 . . Swap 2 | . 1 1 . Drop . | . . . . Fire 33 | . 2 14 17 Melee . | . . . . Ram . | . . . . Kick 1 | . . . 1 Crush . | . . . . Escape Stasis . | . . . . Rewire . | . . . . Trap . | . . . . Miscellaneous . | . . . . Route ------- -11/Scrapyard -10/Materials (discovered 2 exits: *Mat / [*Min]) -10/Mines -9/Materials History --------- Turn | Location | Event 16 | -11/Scrapyard | Discovered new exit (range 15) 56 | -11/Scrapyard | Entered Materials 118 | -10/Materials | Discovered new exit (range 12) 144 | -10/Materials | Discovered new exit (range 13) 174 | -10/Materials | Entered Mines 175 | -10/Mines | Assembled infested the area 232 | -10/Mines | Core integrity fell below 50% 254 | -10/Mines | Core integrity fell below 20% 266 | -10/Mines | Lost 4 parts (1p1n2w) 301 | -10/Mines | Build established: Mutant 325 | -10/Mines | Received a Rocket Launcher from a helpful Derelict 575 | -10/Mines | Discovered new exit (range 4) 581 | -10/Mines | Entered Materials 581 | -9/Materials | Evolved 2 slots: Utility x1, Weapon x1 592 | -9/Materials | Lost 3 parts (1p1n1w) 1006 | -9/Materials | Self-destructed Last Messages --------------- 00976_ U-05 Engineer builds a Wall. 00976_ U-05 Engineer builds a Door. 00977_ U-05 Engineer builds a Wall. 00978_ K-01 Serf collects debris. 00980_ U-05 Engineer lays Concrete. 00981_ U-05 Engineer builds a Wall. 00981_ U-05 Engineer lays Concrete. 00981_ K-01 Serf collects debris. 00982_ U-05 Engineer builds a Wall. 00984_ K-01 Serf collects debris. 00986_ U-05 Engineer lays Concrete. 00988_ K-01 Serf collects debris. 00989_ U-05 Engineer lays Concrete. 00991_ The unstable cave ceiling collapses. 00991_ U-05 Engineer lays Concrete. 00991_ K-01 Serf collects debris. 00992_ U-05 Engineer lays Concrete. 00994_ U-05 Engineer builds a Wall. 00994_ U-05 Engineer lays Concrete. 00999_ K-01 Serf cleans the Integration Channel. Map ----- +----------------------------------------------------+ | ?????????????????????????????????????????????????? | | ?????????????????????????????????????????????????? | | ?????????????????????????????????????????????????? | | ?????????????????????????????????????????????????? | | ?????????????????????????????????????????????????? | | ?????????????????????????????????????????????????? | | ?????????????????????????????????????????????????? | | ?????????????????????????????????????????????????? | | ?????????????????????????????????????????????????? | | ?????????????????????????????????????????????????? | | ?????????????????????????##??????????????????????? | | ????????????????????????? "?????????????????????? | | ?????????????????????????[ ?????????????????????? | | ????????????????????????? ?????????????????????? | | ?????????? ???????????? ?????????????????????? | | ?????????# ?? ????????? "?????????????????????? | | ?????????# #? ?????????k ""???"????????????????? | | ?????????# # ????????# ""?? ""???????????????? | | ?????????# # ????????# "" ""??????????????? | | ???????### !/ ?????????# """ k"""??????????????? | | ???????# # %^# ?????????# "" "" ??????????????? | | #??????# [=#####?????## "" ""???????????????? | | #??????# # ### #####?# " ?????????????????? | | #??????# % # #?# ???????????????????? | | #??????# % " #### ?????????????????????? | | #???????# " #""" ## @#??????????????????????? | | #???????## #### #??????????????????????? | | #???????## + u #??????????????????????? | | ##??????# #######??????????????????????? | | #??????# " #??????????????????????????? | | #??????## "##??????????????????????????? | | #???????# " "#???????????????????????????? | | #???????# #"""""###???????????????????????????? | | #???????# #########???????????????????????????? | | #???????# ## #???????????????????????????? | | #???????# ## #???????????????????????????? | | #???????# ## #???????????????????????????? | | #???????# ## #???????????????????????????? | | ##?????## ## #???????????????????????????? | | ####### # == #???????????????????????????? | | #% =| #???????????????????????????? | | %/ ==| #???????????????????????????? | | #% #???????????????????????????? | | ####### # #???????????????????????????? | | #####?####+##########???????????????????????????? | | ##????# #????????????????????????????????? | | #?????# """ !#????????????????????????????????? | | #?????# """ #????????????????????????????????? | | #?????# """ #????????????????????????????????? | | #?????# #????????????????????????????????? | +----------------------------------------------------+ Best States ------------- Heat Dissipation 38 Energy Generation 10 Energy Capacity 250 Matter Stores 300 Matter Capacity 300 Sight Range 16 Terrain Scan Density 10 Resistance: KI 20 Resistance: TH 20 Resistance: EX 20 Resistance: EM 20 Resistance: I 20 Resistance: S 20 Resistance: P 20 Evasion (%) 42 Offensive Hacking 10 Item Schematics ----------------- Hcp. Storage Unit | -9/Materials | Scanalyzed Robot Schematics ------------------ None Fabricated ------------ Nothing Alien Tech Used ----------------- None Achievements -------------- Close Call I Survived The Infestation Challenges ------------ None Game ------ Seed GravitonCannonPick Manual? 0 Play Time 00:10:30 Cumulative 10.1 hours Start 2021.12.18 @ 03:49:25 End 2021.12.18 @ 04:05:03 Sessions 1 Manual Loads 0 Difficulty Adventurer Special Mode None Game No. 9 Rogue 0 Adventurer 9 Explorer 0 Win Type - Total 0 Types 0/0/0/0/0/0/0/0/0 Lore% 6 Gallery% 19 Achievement% 19 Wizard Run 0 Options --------- ASCII 0 Keyboard 1 Movement Vi Keybinds 0 Fullscreen 2 Font 24/Smallcaps Map View 64x52 Tactical HUD 1 Map Filters NONE Filters NONE Steam 0 RUN: 7c09b4e7-5614-4cba-a0b5-2e11fcefe0d0